[Event "Late-Titled-Tuesday-Blitz-June-18-2024"]
[Site "Chess.com"]
[Date "2024.06.18"]
[Round "1"]
[White "soloderisas"]
[Black "Smiechu"]
[Result "1-0"]
[WhiteElo "2638"]
[BlackElo "2325"]
[TimeControl "180+1"]
[EndTime "14:07:04 PDT"]
[Termination "soloderisas won by resignation"]

1. d4 {[%clk 0:02:59.7]} 1... Nf6 {[%clk 0:02:59.6]} 2. Nf3 {[%clk 0:03:00]}
2... c5 {[%clk 0:03:00.2]} 3. c3 {[%clk 0:02:59.8]} 3... g6 {[%clk 0:02:59.7]}
4. Bf4 {[%clk 0:02:59.4]} 4... Bg7 {[%clk 0:03:00.1]} 5. e3 {[%clk 0:02:59.6]}
5... O-O {[%clk 0:03:00.5]} 6. Be2 {[%clk 0:02:59.4]} 6... d6 {[%clk 0:03:00.4]}
7. h3 {[%clk 0:02:59.5]} 7... b6 {[%clk 0:02:58.2]} 8. O-O {[%clk 0:02:59.6]}
8... Bb7 {[%clk 0:02:58.7]} 9. Nbd2 {[%clk 0:03:00.2]} 9... Nbd7 {[%clk
0:02:58.9]} 10. a4 {[%clk 0:03:00.5]} 10... a6 {[%clk 0:02:58.9]} 11. Qb3 {[%clk
0:03:00.2]} 11... Ne4 {[%clk 0:02:50.3]} 12. Nxe4 {[%clk 0:02:59.7]} 12... Bxe4
{[%clk 0:02:50.4]} 13. Ng5 {[%clk 0:03:00.6]} 13... Bb7 {[%clk 0:02:43.7]} 14.
Bc4 {[%clk 0:03:00.6]} 14... Qe8 {[%clk 0:02:32.9]} 15. d5 {[%clk 0:02:55.1]}
15... h6 {[%clk 0:02:28.3]} 16. Nf3 {[%clk 0:02:54.6]} 16... Nf6 {[%clk
0:02:27.6]} 17. Rfe1 {[%clk 0:02:38.3]} 17... Qd8 {[%clk 0:02:24.1]} 18. e4
{[%clk 0:02:36.5]} 18... Rb8 {[%clk 0:02:17.1]} 19. e5 {[%clk 0:02:30.4]} 19...
Ne8 {[%clk 0:02:17.1]} 20. Rad1 {[%clk 0:02:22.3]} 20... Nc7 {[%clk 0:02:14.6]}
21. exd6 {[%clk 0:02:20]} 21... exd6 {[%clk 0:02:14.2]} 22. Qxb6 {[%clk
0:02:04.1]} 22... Bxd5 {[%clk 0:01:22.7]} 23. Qxd6 {[%clk 0:02:02.9]} 23... Bxc4
{[%clk 0:01:20.9]} 24. Qxd8 {[%clk 0:01:54.3]} 24... Rbxd8 {[%clk 0:01:18.1]}
25. Bxc7 {[%clk 0:01:49.6]} 25... Rxd1 {[%clk 0:01:17.9]} 26. Rxd1 {[%clk
0:01:49.3]} 26... Re8 {[%clk 0:01:15.9]} 27. Rd8 {[%clk 0:01:36.6]} 27... Rxd8
{[%clk 0:01:12.1]} 28. Bxd8 {[%clk 0:01:37.5]} 28... Bb3 {[%clk 0:01:09.2]} 29.
a5 {[%clk 0:01:34.9]} 29... Kf8 {[%clk 0:01:04.5]} 30. Bb6 {[%clk 0:01:32.8]}
30... c4 {[%clk 0:01:03.6]} 31. Bd4 {[%clk 0:01:22.9]} 31... f6 {[%clk
0:01:03.8]} 32. Bc5+ {[%clk 0:01:21.6]} 32... Kf7 {[%clk 0:01:02.7]} 33. Nd4
{[%clk 0:01:21.4]} 33... Ba4 {[%clk 0:01:00]} 34. f3 {[%clk 0:01:15.5]} 34... h5
{[%clk 0:01:00.1]} 35. f4 {[%clk 0:01:05.6]} 35... h4 {[%clk 0:00:57.8]} 36. Kf2
{[%clk 0:01:05.3]} 36... Bh6 {[%clk 0:00:57.3]} 37. Bd6 {[%clk 0:01:00.2]} 37...
Ke8 {[%clk 0:00:55.5]} 38. Kf3 {[%clk 0:00:49.7]} 38... Bd1+ {[%clk 0:00:53.3]}
39. Ke4 {[%clk 0:00:46.6]} 39... Kd7 {[%clk 0:00:52.8]} 40. Kd5 {[%clk
0:00:38.6]} 40... g5 {[%clk 0:00:51.7]} 41. Nf5 {[%clk 0:00:34.7]} 41... g4
{[%clk 0:00:31.9]} 42. Nxh6 {[%clk 0:00:32.8]} 42... Bf3+ {[%clk 0:00:27.5]} 43.
gxf3 {[%clk 0:00:30.5]} 43... g3 {[%clk 0:00:20.7]} 44. Bc5 {[%clk 0:00:29.1]}
1-0

[Event "Late-Titled-Tuesday-Blitz-June-18-2024"]
[Site "Chess.com"]
[Date "2024.06.18"]
[Round "1"]
[White "Slovineanu"]
[Black "randy296"]
[Result "1-0"]
[WhiteElo "2558"]
[BlackElo "2076"]
[TimeControl "180+1"]
[EndTime "14:07:04 PDT"]
[Termination "Slovineanu won by resignation"]

1. d4 {[%clk 0:02:58.9]} 1... Nf6 {[%clk 0:02:59.5]} 2. Nf3 {[%clk 0:02:56.8]}
2... g6 {[%clk 0:02:59.2]} 3. Nbd2 {[%clk 0:02:56.4]} 3... Bg7 {[%clk
0:02:59.6]} 4. e4 {[%clk 0:02:55.9]} 4... d6 {[%clk 0:03:00]} 5. Bb5+ {[%clk
0:02:55.9]} 5... c6 {[%clk 0:02:57.3]} 6. Bd3 {[%clk 0:02:55.6]} 6... O-O {[%clk
0:02:56.8]} 7. O-O {[%clk 0:02:55.1]} 7... Nbd7 {[%clk 0:02:53.6]} 8. a4 {[%clk
0:02:54.5]} 8... Qc7 {[%clk 0:02:53.3]} 9. b4 {[%clk 0:02:53.1]} 9... e5 {[%clk
0:02:52.4]} 10. dxe5 {[%clk 0:02:52.9]} 10... Nxe5 {[%clk 0:02:51.1]} 11. Nxe5
{[%clk 0:02:52.5]} 11... dxe5 {[%clk 0:02:51.1]} 12. Nf3 {[%clk 0:02:45.8]}
12... Bg4 {[%clk 0:02:39.3]} 13. a5 {[%clk 0:02:30.8]} 13... Rad8 {[%clk
0:02:37.2]} 14. h3 {[%clk 0:02:24.9]} 14... Bc8 {[%clk 0:02:30.3]} 15. Qe2
{[%clk 0:02:21.3]} 15... Rfe8 {[%clk 0:02:29.2]} 16. Be3 {[%clk 0:02:19.6]}
16... b6 {[%clk 0:02:24.2]} 17. Rfe1 {[%clk 0:01:59.1]} 17... c5 {[%clk
0:02:18]} 18. axb6 {[%clk 0:01:56.1]} 18... axb6 {[%clk 0:02:17.7]} 19. b5
{[%clk 0:01:50.1]} 19... Bb7 {[%clk 0:02:07.3]} 20. Nd2 {[%clk 0:01:48.3]} 20...
Ra8 {[%clk 0:01:58.1]} 21. Bg5 {[%clk 0:01:32.2]} 21... Rxa1 {[%clk 0:01:40.9]}
22. Rxa1 {[%clk 0:01:31.5]} 22... Ra8 {[%clk 0:01:41.4]} 23. Rxa8+ {[%clk
0:01:29.6]} 23... Bxa8 {[%clk 0:01:41.4]} 24. Bxf6 {[%clk 0:01:23.3]} 24... Bxf6
{[%clk 0:01:40.7]} 25. Bc4 {[%clk 0:01:23.5]} 25... Qd6 {[%clk 0:01:33.1]} 26.
Qd3 {[%clk 0:01:20.8]} 26... Qd4 {[%clk 0:01:26.7]} 27. c3 {[%clk 0:01:13.5]}
27... Qxd3 {[%clk 0:01:22.9]} 28. Bxd3 {[%clk 0:01:13.6]} 28... Be7 {[%clk
0:01:19.1]} 29. Nc4 {[%clk 0:01:11.2]} 29... f5 {[%clk 0:01:12.7]} 30. Nxb6
{[%clk 0:01:04.3]} 30... Bxe4 {[%clk 0:01:12.2]} 31. Bxe4 {[%clk 0:01:03.9]}
31... fxe4 {[%clk 0:01:12.2]} 32. Nd7 {[%clk 0:00:54.8]} 32... Bd6 {[%clk
0:01:03.6]} 33. b6 {[%clk 0:00:54]} 33... Kf7 {[%clk 0:01:03.9]} 34. b7 {[%clk
0:00:54.4]} 34... Ke6 {[%clk 0:01:03.9]} 35. b8=Q {[%clk 0:00:54.7]} 35... Bxb8
{[%clk 0:01:03.9]} 36. Nxb8 {[%clk 0:00:55.3]} 36... Kd5 {[%clk 0:01:04.2]} 37.
Kf1 {[%clk 0:00:50.6]} 37... Kc4 {[%clk 0:01:04.3]} 38. Nd7 {[%clk 0:00:50.4]}
38... e3 {[%clk 0:00:56.7]} 39. fxe3 {[%clk 0:00:47.4]} 39... Kd3 {[%clk
0:00:55.3]} 40. Nxc5+ {[%clk 0:00:47.1]} 40... Kxe3 {[%clk 0:00:55.3]} 41. Na4
{[%clk 0:00:28.5]} 41... Kd3 {[%clk 0:00:51.1]} 42. Ke1 {[%clk 0:00:27.5]} 42...
g5 {[%clk 0:00:41.1]} 43. g4 {[%clk 0:00:27.1]} 43... h6 {[%clk 0:00:39.5]} 44.
Kd1 {[%clk 0:00:27.2]} 44... e4 {[%clk 0:00:39]} 45. Ke1 {[%clk 0:00:27.5]}
45... e3 {[%clk 0:00:31.5]} 46. Kd1 {[%clk 0:00:26.5]} 46... e2+ {[%clk
0:00:31.4]} 47. Ke1 {[%clk 0:00:27.1]} 47... Ke3 {[%clk 0:00:31.8]} 48. c4
{[%clk 0:00:27.2]} 48... Kd4 {[%clk 0:00:30.8]} 49. c5 {[%clk 0:00:27.6]} 1-0

[Event "Late-Titled-Tuesday-Blitz-June-18-2024"]
[Site "Chess.com"]
[Date "2024.06.18"]
[Round "1"]
[White "mishanick"]
[Black "harshu27"]
[Result "1-0"]
[WhiteElo "3135"]
[BlackElo "2533"]
[TimeControl "180+1"]
[EndTime "14:07:07 PDT"]
[Termination "mishanick won by checkmate"]

1. d4 {[%clk 0:02:40.5]} 1... Nf6 {[%clk 0:02:58]} 2. c4 {[%clk 0:02:40.7]} 2...
e6 {[%clk 0:02:58]} 3. Nc3 {[%clk 0:02:41.2]} 3... Bb4 {[%clk 0:02:57.1]} 4. Qc2
{[%clk 0:02:39.3]} 4... O-O {[%clk 0:02:56.9]} 5. e4 {[%clk 0:02:38.9]} 5... d5
{[%clk 0:02:55.9]} 6. e5 {[%clk 0:02:39.3]} 6... Ne4 {[%clk 0:02:55.7]} 7. Bd3
{[%clk 0:02:39.9]} 7... c5 {[%clk 0:02:55.4]} 8. Nf3 {[%clk 0:02:40.3]} 8...
cxd4 {[%clk 0:02:55.1]} 9. Nxd4 {[%clk 0:02:41.2]} 9... Nd7 {[%clk 0:02:55.1]}
10. Bf4 {[%clk 0:02:41]} 10... Qh4 {[%clk 0:02:53.6]} 11. g3 {[%clk 0:02:41.5]}
11... Qh3 {[%clk 0:02:40.8]} 12. O-O-O {[%clk 0:02:33.1]} 12... Ndc5 {[%clk
0:02:09.2]} 13. Nxe4 {[%clk 0:02:21.7]} 13... dxe4 {[%clk 0:01:49.3]} 14. Bf1
{[%clk 0:02:20.3]} 14... Qg4 {[%clk 0:01:33.8]} 15. Be2 {[%clk 0:02:19.4]} 15...
Qg6 {[%clk 0:01:33.6]} 16. a3 {[%clk 0:02:17.2]} 16... a5 {[%clk 0:01:21.9]} 17.
axb4 {[%clk 0:01:58.8]} 17... axb4 {[%clk 0:01:22.8]} 18. Nb3 {[%clk 0:01:59.3]}
18... b6 {[%clk 0:00:55.7]} 19. Nxc5 {[%clk 0:01:59.1]} 19... bxc5 {[%clk
0:00:55.4]} 20. b3 {[%clk 0:01:59.7]} 20... f6 {[%clk 0:00:41.5]} 21. Kb2 {[%clk
0:01:58.7]} 21... fxe5 {[%clk 0:00:40.6]} 22. Be3 {[%clk 0:01:59.2]} 22... Bb7
{[%clk 0:00:39.1]} 23. Rd7 {[%clk 0:01:56.1]} 23... Ra3 {[%clk 0:00:19.3]} 24.
Rxb7 {[%clk 0:01:51]} 24... Rfa8 {[%clk 0:00:19.6]} 25. Qb1 {[%clk 0:01:51.3]}
25... Qe8 {[%clk 0:00:15.6]} 26. Rb5 {[%clk 0:01:40.8]} 26... Qd7 {[%clk
0:00:11.7]} 27. Rc1 {[%clk 0:00:45.5]} 27... Qa7 {[%clk 0:00:07.2]} 28. Kc2
{[%clk 0:00:45.8]} 28... Qd7 {[%clk 0:00:04.6]} 29. Qb2 {[%clk 0:00:28]} 29...
Ra2 {[%clk 0:00:04.6]} 30. Rb8+ {[%clk 0:00:27.8]} 30... Kf7 {[%clk 0:00:04.3]}
31. Rxa8 {[%clk 0:00:28]} 31... Rxa8 {[%clk 0:00:04.4]} 32. Qxe5 {[%clk
0:00:26.3]} 32... Ra2+ {[%clk 0:00:04]} 33. Kb1 {[%clk 0:00:26.8]} 33... Qa7
{[%clk 0:00:04]} 34. Bg4 {[%clk 0:00:19.1]} 34... Qa3 {[%clk 0:00:02.7]} 35.
Qxe6+ {[%clk 0:00:18.6]} 35... Kf8 {[%clk 0:00:02.1]} 36. Bxc5# {[%clk
0:00:19.5]} 1-0

[Event "Late-Titled-Tuesday-Blitz-June-18-2024"]
[Site "Chess.com"]
[Date "2024.06.18"]
[Round "1"]
[White "BerlinDrawer"]
[Black "CarlMagnuson"]
[Result "1-0"]
[WhiteElo "2567"]
[BlackElo "2142"]
[TimeControl "180+1"]
[EndTime "14:07:07 PDT"]
[Termination "BerlinDrawer won by resignation"]

1. d4 {[%clk 0:03:00.9]} 1... d5 {[%clk 0:02:59.6]} 2. c4 {[%clk 0:03:00.4]}
2... e6 {[%clk 0:02:59.9]} 3. Nf3 {[%clk 0:02:59]} 3... Nf6 {[%clk 0:03:00.5]}
4. g3 {[%clk 0:02:58.5]} 4... Be7 {[%clk 0:03:00.7]} 5. Bg2 {[%clk 0:02:57.9]}
5... O-O {[%clk 0:03:01.3]} 6. O-O {[%clk 0:02:57.6]} 6... c5 {[%clk 0:03:01.9]}
7. cxd5 {[%clk 0:02:57.4]} 7... exd5 {[%clk 0:03:01.6]} 8. Nc3 {[%clk
0:02:56.9]} 8... cxd4 {[%clk 0:03:01.4]} 9. Nxd4 {[%clk 0:02:53.4]} 9... Nc6
{[%clk 0:03:02]} 10. Be3 {[%clk 0:02:51.8]} 10... Be6 {[%clk 0:03:00.7]} 11. Rc1
{[%clk 0:02:48.8]} 11... Qd7 {[%clk 0:03:00.5]} 12. Nxc6 {[%clk 0:02:43.4]}
12... bxc6 {[%clk 0:03:00]} 13. Na4 {[%clk 0:02:43.5]} 13... Rab8 {[%clk
0:02:55.6]} 14. Bc5 {[%clk 0:02:38.5]} 14... Bd6 {[%clk 0:02:38]} 15. Qd4 {[%clk
0:02:32]} 15... Rfd8 {[%clk 0:02:29]} 16. b3 {[%clk 0:02:28.5]} 16... Qc7 {[%clk
0:02:07.1]} 17. Rfe1 {[%clk 0:02:12.7]} 17... Be5 {[%clk 0:02:04]} 18. Qd2
{[%clk 0:02:08.5]} 18... h6 {[%clk 0:01:54.3]} 19. Bd4 {[%clk 0:02:04.2]} 19...
Ne4 {[%clk 0:01:51.7]} 20. Bxe5 {[%clk 0:02:03.7]} 20... Qxe5 {[%clk 0:01:50.7]}
21. Qe3 {[%clk 0:02:02.6]} 21... Qg5 {[%clk 0:01:35.9]} 22. Qxg5 {[%clk
0:01:57.4]} 22... Nxg5 {[%clk 0:01:32.9]} 23. Rxc6 {[%clk 0:01:48.5]} 23... Bd7
{[%clk 0:01:32.8]} 24. Ra6 {[%clk 0:01:47.3]} 24... Bb5 {[%clk 0:01:32.3]} 25.
Rxa7 {[%clk 0:01:44.8]} 25... d4 {[%clk 0:01:32.7]} 26. Nc5 {[%clk 0:01:41.2]}
26... Ne6 {[%clk 0:01:29.5]} 27. Nxe6 {[%clk 0:01:36.7]} 27... fxe6 {[%clk
0:01:30.4]} 28. Be4 {[%clk 0:01:36.7]} 28... Rbc8 {[%clk 0:01:25.5]} 29. Bd3
{[%clk 0:01:33.8]} 29... Bc6 {[%clk 0:01:24.4]} 30. f3 {[%clk 0:01:21]} 30...
Bd5 {[%clk 0:01:22.3]} 31. Rd1 {[%clk 0:01:13.3]} 31... Ra8 {[%clk 0:01:20.9]}
32. Rxa8 {[%clk 0:01:10.4]} 32... Rxa8 {[%clk 0:01:21.8]} 33. Rd2 {[%clk
0:01:10.6]} 33... Ra3 {[%clk 0:01:17.3]} 34. Kf2 {[%clk 0:01:06.3]} 34... Kf8
{[%clk 0:01:17]} 35. Rc2 {[%clk 0:01:03]} 35... Ke7 {[%clk 0:01:15.1]} 36. e3
{[%clk 0:00:56]} 36... dxe3+ {[%clk 0:01:13.4]} 37. Kxe3 {[%clk 0:00:55.8]}
37... Kd6 {[%clk 0:01:14.3]} 38. Be4 {[%clk 0:00:51.7]} 38... g5 {[%clk
0:01:03.2]} 39. Rd2 {[%clk 0:00:43.8]} 39... Ke5 {[%clk 0:01:01]} 40. f4+ {[%clk
0:00:41.9]} 40... gxf4+ {[%clk 0:00:59.3]} 41. gxf4+ {[%clk 0:00:42.8]} 41...
Kd6 {[%clk 0:00:58.6]} 42. f5 {[%clk 0:00:40.3]} 42... Ke5 {[%clk 0:00:50.4]}
43. Bxd5 {[%clk 0:00:38]} 43... exd5 {[%clk 0:00:49.9]} 44. Rf2 {[%clk
0:00:37.9]} 44... Ra7 {[%clk 0:00:48.9]} 45. f6 {[%clk 0:00:32.9]} 45... Rf7
{[%clk 0:00:49.3]} 46. Kd3 {[%clk 0:00:31]} 46... d4 {[%clk 0:00:43]} 47. b4
{[%clk 0:00:23.9]} 47... Kd5 {[%clk 0:00:42.5]} 48. a4 {[%clk 0:00:20.2]} 48...
Ke5 {[%clk 0:00:39.4]} 49. b5 {[%clk 0:00:20.4]} 49... Rxf6 {[%clk 0:00:39.2]}
50. Rxf6 {[%clk 0:00:19.6]} 50... Kxf6 {[%clk 0:00:40.1]} 51. Kxd4 {[%clk
0:00:20.1]} 51... Ke7 {[%clk 0:00:41]} 52. b6 {[%clk 0:00:20.6]} 52... Kd7
{[%clk 0:00:41.9]} 53. Kc5 {[%clk 0:00:20.6]} 1-0

[Event "Late-Titled-Tuesday-Blitz-June-18-2024"]
[Site "Chess.com"]
[Date "2024.06.18"]
[Round "1"]
[White "Andrey-Ivanov2011"]
[Black "pooh2012"]
[Result "0-1"]
[WhiteElo "2105"]
[BlackElo "2563"]
[TimeControl "180+1"]
[EndTime "14:07:07 PDT"]
[Termination "pooh2012 won by resignation"]

1. e4 {[%clk 0:02:58.4]} 1... e6 {[%clk 0:02:51.3]} 2. d4 {[%clk 0:02:56.7]}
2... d5 {[%clk 0:02:51]} 3. Nd2 {[%clk 0:02:57.1]} 3... a6 {[%clk 0:02:50.7]} 4.
Ngf3 {[%clk 0:02:56.6]} 4... Nf6 {[%clk 0:02:45.6]} 5. e5 {[%clk 0:02:55.4]}
5... Nfd7 {[%clk 0:02:45.7]} 6. c3 {[%clk 0:02:54.3]} 6... c5 {[%clk 0:02:45.2]}
7. Bd3 {[%clk 0:02:54.1]} 7... Nc6 {[%clk 0:02:45.5]} 8. O-O {[%clk 0:02:53.5]}
8... Be7 {[%clk 0:02:45]} 9. Bc2 {[%clk 0:02:47.3]} 9... b5 {[%clk 0:02:42.5]}
10. a4 {[%clk 0:02:46.5]} 10... b4 {[%clk 0:02:41.9]} 11. cxb4 {[%clk
0:02:43.9]} 11... Nxb4 {[%clk 0:02:40.9]} 12. Nb3 {[%clk 0:02:42.3]} 12... Nxc2
{[%clk 0:02:25.8]} 13. Qxc2 {[%clk 0:02:43.2]} 13... cxd4 {[%clk 0:02:23.4]} 14.
Nbxd4 {[%clk 0:02:41.9]} 14... Bb7 {[%clk 0:02:23.2]} 15. Be3 {[%clk 0:02:38.2]}
15... Rc8 {[%clk 0:02:18.9]} 16. Qd3 {[%clk 0:02:36.9]} 16... O-O {[%clk
0:02:16.6]} 17. Rac1 {[%clk 0:02:37]} 17... Nc5 {[%clk 0:02:15]} 18. Qd1 {[%clk
0:02:31.5]} 18... Qd7 {[%clk 0:02:12.6]} 19. b3 {[%clk 0:02:27.6]} 19... a5
{[%clk 0:02:05.7]} 20. h3 {[%clk 0:02:25.5]} 20... Ba6 {[%clk 0:02:01.3]} 21.
Nb5 {[%clk 0:02:14.7]} 21... Bxb5 {[%clk 0:02:01.2]} 22. axb5 {[%clk 0:02:15.6]}
22... Qxb5 {[%clk 0:02:00.9]} 23. Nd4 {[%clk 0:02:15.5]} 23... Qb7 {[%clk
0:01:58.2]} 24. Qg4 {[%clk 0:02:06]} 24... Kh8 {[%clk 0:01:44]} 25. Ra1 {[%clk
0:02:00.3]} 25... Ra8 {[%clk 0:01:06.3]} 26. f4 {[%clk 0:01:46]} 26... Nxb3
{[%clk 0:01:01.7]} 27. f5 {[%clk 0:01:36.1]} 27... Nxd4 {[%clk 0:00:46.9]} 28.
Bxd4 {[%clk 0:01:34.1]} 28... exf5 {[%clk 0:00:41.7]} 29. Rxf5 {[%clk
0:01:29.8]} 29... Qb4 {[%clk 0:00:20]} 30. Raf1 {[%clk 0:01:27]} 30... Bc5
{[%clk 0:00:18]} 31. Bxc5 {[%clk 0:01:22.6]} 31... Qxc5+ {[%clk 0:00:18.9]} 32.
Kh2 {[%clk 0:01:20.5]} 32... Qe7 {[%clk 0:00:19.1]} 33. Qa4 {[%clk 0:01:19.4]}
33... Qc7 {[%clk 0:00:14.2]} 34. Rd1 {[%clk 0:01:17.8]} 34... Rad8 {[%clk
0:00:10.4]} 35. Qd4 {[%clk 0:01:12.9]} 35... Kg8 {[%clk 0:00:09.3]} 36. Rf3
{[%clk 0:01:12.3]} 36... Rfe8 {[%clk 0:00:09.1]} 37. Re3 {[%clk 0:01:11.7]}
37... f6 {[%clk 0:00:08.7]} 38. Kg1 {[%clk 0:01:05.3]} 38... Rxe5 {[%clk
0:00:08.5]} 39. Rc3 {[%clk 0:01:01.1]} 39... Qe7 {[%clk 0:00:08.2]} 40. Qd2
{[%clk 0:01:00]} 40... d4 {[%clk 0:00:07.8]} 41. Rd3 {[%clk 0:01:00.1]} 41...
Re4 {[%clk 0:00:07.2]} 42. Qxa5 {[%clk 0:00:57.2]} 42... g6 {[%clk 0:00:06.8]}
43. Qa2+ {[%clk 0:00:54.6]} 43... Kg7 {[%clk 0:00:06.9]} 44. Ra3 {[%clk
0:00:53.3]} 44... Re1+ {[%clk 0:00:06.5]} 45. Rxe1 {[%clk 0:00:53.1]} 45...
Qxe1+ {[%clk 0:00:07.4]} 46. Kh2 {[%clk 0:00:53.5]} 46... Qe5+ {[%clk
0:00:07.5]} 47. Kg1 {[%clk 0:00:53.2]} 47... d3 {[%clk 0:00:05.3]} 48. Qd2
{[%clk 0:00:52.4]} 48... Qc5+ {[%clk 0:00:03.3]} 49. Kh2 {[%clk 0:00:50.7]}
49... Qxa3 {[%clk 0:00:03.5]} 50. Qe3 {[%clk 0:00:51.4]} 50... Qd6+ {[%clk
0:00:03.7]} 51. Kg1 {[%clk 0:00:51.1]} 51... d2 {[%clk 0:00:04.5]} 0-1

[Event "Late-Titled-Tuesday-Blitz-June-18-2024"]
[Site "Chess.com"]
[Date "2024.06.18"]
[Round "1"]
[White "AlbusSevresPotter"]
[Black "teresin05"]
[Result "1-0"]
[WhiteElo "2623"]
[BlackElo "2291"]
[TimeControl "180+1"]
[EndTime "14:07:08 PDT"]
[Termination "AlbusSevresPotter won by checkmate"]

1. e4 {[%clk 0:03:00.9]} 1... c5 {[%clk 0:02:12.2]} 2. Nf3 {[%clk 0:02:51.9]}
2... Nc6 {[%clk 0:02:11.6]} 3. d4 {[%clk 0:02:51.8]} 3... cxd4 {[%clk
0:02:12.5]} 4. Nxd4 {[%clk 0:02:52.4]} 4... Nf6 {[%clk 0:02:12.8]} 5. Nc3 {[%clk
0:02:51.3]} 5... d6 {[%clk 0:02:13.2]} 6. Bg5 {[%clk 0:02:50.7]} 6... Bd7 {[%clk
0:02:08.7]} 7. Qd2 {[%clk 0:02:49.4]} 7... a6 {[%clk 0:02:07.6]} 8. f3 {[%clk
0:02:41.7]} 8... e6 {[%clk 0:02:07.9]} 9. O-O-O {[%clk 0:02:41.1]} 9... Be7
{[%clk 0:01:57.9]} 10. h4 {[%clk 0:02:39.3]} 10... h6 {[%clk 0:01:53.5]} 11. Be3
{[%clk 0:02:35.5]} 11... h5 {[%clk 0:01:53.3]} 12. Bg5 {[%clk 0:02:32.6]} 12...
b5 {[%clk 0:01:51.6]} 13. Nxc6 {[%clk 0:02:25.3]} 13... Bxc6 {[%clk 0:01:50.2]}
14. Ne2 {[%clk 0:02:25.8]} 14... Rc8 {[%clk 0:01:32.9]} 15. Nd4 {[%clk
0:02:23.5]} 15... Bb7 {[%clk 0:01:31.5]} 16. Kb1 {[%clk 0:02:11.3]} 16... Qc7
{[%clk 0:01:21.7]} 17. Be2 {[%clk 0:02:05.9]} 17... d5 {[%clk 0:01:15.7]} 18. e5
{[%clk 0:02:05.2]} 18... Nd7 {[%clk 0:01:13.5]} 19. Bxe7 {[%clk 0:02:03.8]}
19... Kxe7 {[%clk 0:01:12.5]} 20. Qg5+ {[%clk 0:02:01.7]} 20... Kf8 {[%clk
0:01:11.5]} 21. f4 {[%clk 0:02:01.7]} 21... g6 {[%clk 0:01:05.1]} 22. g4 {[%clk
0:01:42.6]} 22... hxg4 {[%clk 0:00:56.9]} 23. h5 {[%clk 0:01:41.9]} 23... Qd8
{[%clk 0:00:46.9]} 24. Qxg4 {[%clk 0:01:21.5]} 24... gxh5 {[%clk 0:00:46.4]} 25.
Rxh5 {[%clk 0:01:22.4]} 25... Rxh5 {[%clk 0:00:46.7]} 26. Qxh5 {[%clk 0:01:23]}
26... Ke7 {[%clk 0:00:44.1]} 27. Qh4+ {[%clk 0:01:14.8]} 27... Kf8 {[%clk
0:00:40.9]} 28. Qh6+ {[%clk 0:01:10.4]} 28... Ke7 {[%clk 0:00:41]} 29. Rg1
{[%clk 0:00:58.6]} 29... Qh8 {[%clk 0:00:31.5]} 30. Qg5+ {[%clk 0:00:56]} 30...
Ke8 {[%clk 0:00:29.5]} 31. Nxe6 {[%clk 0:00:55.8]} 31... Qh7 {[%clk 0:00:15]}
32. Bd3 {[%clk 0:00:49.7]} 32... Qh8 {[%clk 0:00:10.5]} 33. Ng7+ {[%clk
0:00:33]} 33... Kf8 {[%clk 0:00:09.6]} 34. Nf5 {[%clk 0:00:33.9]} 34... Re8
{[%clk 0:00:06.6]} 35. Nd6 {[%clk 0:00:34.3]} 35... Bc6 {[%clk 0:00:02.2]} 36.
Nxe8 {[%clk 0:00:33.7]} 36... Kxe8 {[%clk 0:00:03.1]} 37. e6 {[%clk 0:00:34]}
37... Kf8 {[%clk 0:00:01.2]} 38. Qd8# {[%clk 0:00:30.3]} 1-0

[Event "Late-Titled-Tuesday-Blitz-June-18-2024"]
[Site "Chess.com"]
[Date "2024.06.18"]
[Round "1"]
[White "JoakimVonAnd"]
[Black "StoreySniper"]
[Result "1-0"]
[WhiteElo "2746"]
[BlackElo "2412"]
[TimeControl "180+1"]
[EndTime "14:07:10 PDT"]
[Termination "JoakimVonAnd won on time"]

1. d4 {[%clk 0:02:59.2]} 1... g6 {[%clk 0:03:00.4]} 2. Nf3 {[%clk 0:02:58.5]}
2... Bg7 {[%clk 0:03:01]} 3. g3 {[%clk 0:02:58.4]} 3... c5 {[%clk 0:02:59.1]} 4.
dxc5 {[%clk 0:02:50.8]} 4... Na6 {[%clk 0:02:55.9]} 5. Bg2 {[%clk 0:02:45]} 5...
Nxc5 {[%clk 0:02:55.7]} 6. O-O {[%clk 0:02:45.3]} 6... b6 {[%clk 0:02:50.7]} 7.
c3 {[%clk 0:02:33.7]} 7... Bb7 {[%clk 0:02:49.6]} 8. Re1 {[%clk 0:02:32.8]} 8...
Nf6 {[%clk 0:02:41.1]} 9. Nbd2 {[%clk 0:02:23.7]} 9... d5 {[%clk 0:02:36.4]} 10.
Ne5 {[%clk 0:02:14.1]} 10... O-O {[%clk 0:02:31.9]} 11. Ndf3 {[%clk 0:02:07]}
11... Nfe4 {[%clk 0:02:27.3]} 12. Nd3 {[%clk 0:01:51.5]} 12... Rc8 {[%clk
0:02:20.7]} 13. Be3 {[%clk 0:01:46.9]} 13... Nd7 {[%clk 0:02:07.5]} 14. Nd2
{[%clk 0:01:44.3]} 14... Nd6 {[%clk 0:01:56]} 15. a4 {[%clk 0:01:37.8]} 15... a5
{[%clk 0:01:37.7]} 16. Nf4 {[%clk 0:01:15.6]} 16... e6 {[%clk 0:01:31.9]} 17. h4
{[%clk 0:01:01.6]} 17... Nf5 {[%clk 0:01:29]} 18. Nf1 {[%clk 0:00:58.9]} 18...
Nxe3 {[%clk 0:01:26.7]} 19. Nxe3 {[%clk 0:00:59.8]} 19... h5 {[%clk 0:01:13.5]}
20. Nc2 {[%clk 0:00:50.2]} 20... Nf6 {[%clk 0:01:04]} 21. Nd4 {[%clk 0:00:47]}
21... e5 {[%clk 0:00:54.1]} 22. Nde6 {[%clk 0:00:46.6]} 22... fxe6 {[%clk
0:00:53.6]} 23. Nxe6 {[%clk 0:00:47.5]} 23... Qd6 {[%clk 0:00:47.5]} 24. Nxf8
{[%clk 0:00:47.5]} 24... Bxf8 {[%clk 0:00:43.4]} 25. Qb3 {[%clk 0:00:48.1]}
25... Qe6 {[%clk 0:00:32.4]} 26. Rad1 {[%clk 0:00:48.2]} 26... Bc5 {[%clk
0:00:31.7]} 27. e4 {[%clk 0:00:47]} 27... Ng4 {[%clk 0:00:18.3]} 28. Re2 {[%clk
0:00:47.6]} 28... Qf7 {[%clk 0:00:16.5]} 29. Rdd2 {[%clk 0:00:47.8]} 29... dxe4
{[%clk 0:00:16.5]} 30. Qxf7+ {[%clk 0:00:46]} 30... Kxf7 {[%clk 0:00:16.4]} 31.
Rd7+ {[%clk 0:00:46.5]} 31... Ke6 {[%clk 0:00:15.2]} 32. Rxb7 {[%clk 0:00:46.4]}
32... Rf8 {[%clk 0:00:14.7]} 33. Bh3 {[%clk 0:00:45.8]} 33... Kd5 {[%clk
0:00:10.8]} 34. Bxg4 {[%clk 0:00:43.5]} 34... hxg4 {[%clk 0:00:11.7]} 35. Kg2
{[%clk 0:00:41.6]} 35... e3 {[%clk 0:00:11.1]} 36. fxe3 {[%clk 0:00:41.8]} 36...
Ke4 {[%clk 0:00:11.3]} 37. b4 {[%clk 0:00:34.3]} 37... Kd3 {[%clk 0:00:07.5]}
38. Ra2 {[%clk 0:00:27.7]} 38... Bxe3 {[%clk 0:00:05.9]} 39. Rd7+ {[%clk
0:00:27.9]} 39... Ke4 {[%clk 0:00:05.9]} 40. Re2 {[%clk 0:00:27.4]} 1-0